fUST/lending_fUST_20250313
["ID","MTS","AMOUNT","RATE_DAILY","PERIOD"]
[356045936,1741843832138,-17224.75916009,0.0001399,2]
[356045985,1741843845978,-152.03001399,0.00013988,2]
[356045986,1741843845988,-264.83836901,0.00013988,2]
[356045987,1741843846039,-71.514814,0.00013988,2]
[356045988,1741843846048,-159.02824123,0.00013988,2]
[356045989,1741843846057,-574.53823203,0.00013988,2]
[356045990,1741843846068,-500.0,0.00013988,2]
[356045991,1741843846078,-500.0,0.00013989,2]
[356045992,1741843846088,-678.31871274,0.0001399,2]
[356045993,1741844170539,200.0,0.000185,120]
[356045994,1741844252824,200.0,0.000185,120]
[356045995,1741844364712,4947.0224055,0.00013699,2]
[356045996,1741844368879,1607.41943985,0.00013799,2]
[356045998,1741844511113,159.76411218,0.00013799,2]
[356045999,1741844552889,166.5104764,0.00012891,2]
[356046000,1741844555843,713.40547288,0.00013787,2]
[356046001,1741844559193,1406.49200986,0.00013788,2]
[356046003,1741844661777,164.3402685,0.00012889,2]
[356046005,1741844749745,1230.68050861,0.00013787,2]
[356046006,1741844841082,159.76411217,0.00013789,2]
[356046007,1741844940268,1076.84544506,0.00013787,2]
[356046094,1741845037924,-500.0,0.00013885,2]
[356046096,1741845037937,-500.0,0.00013885,2]
[356046098,1741845037948,-500.0,0.00013885,2]
[356046099,1741845037960,-500.0,0.00013885,2]
[356046100,1741845037971,-500.0,0.00013885,2]
[356046101,1741845037984,-235.44722811,0.00013886,2]
[356046102,1741845037996,-19862.11,0.00013886,2]
[356046103,1741845038007,-2419.29,0.00013886,2]
[356046104,1741845038019,-900.35,0.00013886,2]
[356046105,1741845038031,-738.39,0.00013886,2]
[356046106,1741845038042,-500.0,0.00013886,2]
[356046107,1741845038052,-502.10045369,0.00013886,2]
[356046108,1741845038064,-500.0,0.00013886,2]
[356046109,1741845038074,-500.0,0.00013886,2]
[356046110,1741845038085,-500.0,0.00013886,2]
[356046111,1741845038096,-500.0,0.00013887,2]
[356046113,1741845038106,-548.37,0.00013887,2]
[356046114,1741845038122,-500.0,0.00013887,2]
[356046115,1741845038134,-500.0,0.00013887,2]
[356046116,1741845038146,-512.95852848,0.00013887,2]
[356046117,1741845038156,-724.34,0.00013887,2]
[356046118,1741845038166,-500.0,0.00013887,2]
[356046119,1741845038176,-500.0,0.00013887,2]
[356046120,1741845038186,-500.0,0.00013887,2]
[356046121,1741845038196,-500.0,0.00013887,2]
[356046122,1741845038206,-500.0,0.00013887,2]
[356046123,1741845038215,-8105.30912778,0.00013887,2]
[356046165,1741845040208,-500.0,0.00013885,2]
[356046167,1741845040219,-309.49993753,0.00013885,2]
[356046171,1741845040249,-190.50006247,0.00013885,2]
[356046172,1741845040259,-500.0,0.00013885,2]
[356046173,1741845040268,-500.0,0.00013885,2]
[356046174,1741845040279,-500.0,0.00013885,2]
[356046175,1741845040288,-361.31542046,0.00013885,2]
[356046176,1741845040299,-500.0,0.00013886,2]
[356046177,1741845040309,-1267.42087222,0.00013887,2]
[356046179,1741845040319,-265.01292719,0.00013887,2]
[356046180,1741845040329,-500.0,0.00013887,2]
[356046181,1741845040339,-500.0,0.00013887,2]
[356046182,1741845040354,-3189.73,0.00013887,2]
[356046183,1741845040364,-28.06095583,0.00013887,2]
[356046319,1741845043116,-12.90794435,0.00013887,2]
[356046321,1741845043130,-459.03109982,0.00013887,2]
[356046323,1741845043140,-500.0,0.00013887,2]
[356046325,1741845043150,-568.54261316,0.00013887,2]
[356046327,1741845043160,-2822.52,0.00013887,2]
[356046330,1741845043170,-151.0,0.00013887,2]
[356046332,1741845043179,-151.0,0.00013887,2]
[356046334,1741845043189,-151.0,0.00013887,2]
[356046336,1741845043199,-546.41911991,0.00013887,2]
[356047654,1741845125555,942.23976441,0.00013787,2]
[356047655,1741845155284,-191.31322195,0.00013885,2]
[356047656,1741845162770,-108.68677805,0.00013885,2]
[356047657,1741845162799,-221.67875158,0.00013885,2]
[356047658,1741845168783,169.63447037,0.00013787,2]
[356047660,1741845172556,-261.78858754,0.00013885,2]
[356047661,1741845177557,-173.5893715,0.00013885,2]
[356047662,1741845185851,-227.4927,0.00013884,2]
[356047663,1741845247607,300.0,0.00013745,2]
[356047664,1741845257032,300.0,0.00013745,2]
[356047665,1741845265572,300.0,0.00013745,2]
[356047666,1741845275098,-205.55502106,0.00013745,2]
[356047667,1741845286112,-94.44497894,0.00013745,2]
[356047668,1741845290051,1706.89570066,0.00013745,2]
[356047669,1741845299397,-300.0,0.00013608,2]
[356047670,1741845316269,4708.2718642,0.00012884,2]
[356047671,1741845466754,500.0,0.00012822,2]
[356047672,1741845478133,-169.63447037,0.00013373,2]
[356047674,1741845672030,878.04238277,0.00013,2]
[356047675,1741845686448,164.340267,0.00012681,2]
[356047676,1741845750961,279.5886845,0.00012682,2]
[356047677,1741845868813,5000.0,0.00013,2]
[356047678,1741845951202,1129.6540987,0.00012637,2]
[356047679,1741846165159,-492.71973256,0.00013331,2]
[356047680,1741846183764,216.129,0.000185,120]
[356047713,1741846240444,-0.01458748,0.00013331,2]
[356047859,1741846243272,-1973.21662485,0.00013331,2]
[356047860,1741846243283,-500.0,0.00013466,2]
[356047861,1741846243292,-435.2944103,0.00013466,2]
[356047862,1741846243302,-500.00000099,0.00013467,2]
[356047863,1741846243312,-3054.43458567,0.00013467,2]
[356047864,1741846243322,-300.0,0.00013507,2]
[356047865,1741846243331,-2811.96158743,0.00013508,2]
[356047866,1741846243341,-198.09446641,0.00013683,2]
[356047867,1741846243351,-315.99953002,0.00013697,2]
[356047868,1741846243361,-3056.83,0.00013698,2]
[356047869,1741846243370,-8982.2,0.00013698,2]
[356047870,1741846243380,-3088.17,0.00013698,2]
[356047871,1741846243389,-500.0,0.00013698,2]
[356047872,1741846243399,-500.0,0.00013698,2]
[356047873,1741846243411,-2476.82,0.00013698,2]
[356047874,1741846243420,-2704.91,0.00013698,2]
[356047875,1741846243655,-7304.74,0.00013698,2]
[356047876,1741846243667,-3490.0,0.00013698,2]
[356047877,1741846243677,-19007.15,0.00013698,2]
[356047878,1741846243687,-1708.35,0.00013698,2]
[356047879,1741846243697,-151.0,0.00013698,2]
[356047880,1741846243706,-151.0,0.00013698,2]
[356047881,1741846243716,-500.0,0.00013698,2]
[356047882,1741846243727,-3471.72,0.00013698,2]
[356047883,1741846243737,-2318.48,0.00013698,2]
[356047884,1741846243746,-500.0,0.00013698,2]
[356047885,1741846243756,-2540.901073,0.00013698,2]
[356047886,1741846243765,-2540.901073,0.00013698,2]
[356047887,1741846243775,-2540.901073,0.00013698,2]
[356047888,1741846243784,-2540.901073,0.00013698,2]
[356047889,1741846243795,-7207.47,0.00013698,2]
[356047890,1741846243806,-1978.1,0.00013698,2]
[356047891,1741846243815,-500.0,0.00013698,2]
[356047892,1741846243824,-862.83,0.00013698,2]
[356047893,1741846243834,-5656.73,0.00013698,2]
[356047894,1741846243846,-5086.97,0.00013698,2]
[356047895,1741846243856,-151.0,0.00013698,2]
[356047896,1741846243865,-196.921427,0.00013698,2]
[356047897,1741846243876,-3332.08,0.00013698,2]
[356047898,1741846243886,-500.0,0.00013698,2]
[356047899,1741846243896,-500.0,0.00013698,2]
[356047900,1741846243906,-153.19467,0.00013698,2]
[356047901,1741846243916,-718.03,0.00013698,2]
[356047902,1741846243926,-153.19467,0.00013698,2]
[356047903,1741846243936,-500.0,0.00013698,2]
[356047904,1741846243946,-153.19467,0.00013698,2]
[356047905,1741846243955,-153.19467,0.00013698,2]
[356047906,1741846243965,-151.0,0.00013698,2]
[356047907,1741846243975,-500.0,0.00013698,2]
[356047908,1741846243986,-151.0,0.00013698,2]
[356047909,1741846243996,-151.0,0.00013698,2]
[356047910,1741846244005,-151.0,0.00013698,2]
[356047911,1741846244015,-153.19467,0.00013698,2]
[356047912,1741846244024,-153.19467,0.00013698,2]
[356047913,1741846244034,-500.0,0.00013698,2]
[356047914,1741846244043,-153.19467,0.00013698,2]
[356047915,1741846244052,-153.19467,0.00013698,2]
[356047916,1741846244062,-500.0,0.00013698,2]
[356047917,1741846244072,-500.0,0.00013698,2]
[356047918,1741846244081,-543.29,0.00013698,2]
[356047919,1741846244091,-4404.98,0.00013698,2]
[356047920,1741846244100,-151.0,0.00013698,2]
[356047921,1741846244110,-151.0,0.00013698,2]
[356047922,1741846244120,-151.0,0.00013698,2]
[356047923,1741846244129,-151.0,0.00013698,2]
[356047924,1741846244139,-151.0,0.00013698,2]
[356047925,1741846244148,-151.0,0.00013698,2]
[356047926,1741846244158,-151.0,0.00013698,2]
[356047927,1741846244167,-1817.25,0.00013698,2]
[356047928,1741846244176,-13038.13975956,0.00013698,2]
[356047929,1741846244186,-229.3187156,0.00013699,2]
[356047930,1741846244195,-4987.7991034,0.00013699,2]
[356047931,1741846244205,-201.08777082,0.00013699,2]
[356047932,1741846244215,-500.0,0.00013699,2]
[356047933,1741846244224,-500.0,0.00013699,2]
[356047934,1741846244234,-500.0,0.00013699,2]
[356047935,1741846244243,-500.0,0.00013699,2]
[356047936,1741846244253,-500.0,0.00013699,2]
[356047937,1741846244263,-500.0,0.00013699,2]
[356047938,1741846244273,-500.0,0.00013699,2]
[356047939,1741846244282,-500.0,0.00013699,2]
[356047940,1741846244291,-500.0,0.00013699,2]
[356047941,1741846244300,-500.0,0.00013699,2]
[356047942,1741846244310,-500.0,0.00013699,2]
[356047943,1741846244319,-279.88268102,0.00013699,2]
[356047944,1741846244328,-500.0,0.00013699,2]
[356047945,1741846244338,-500.0,0.00013699,2]
[356047946,1741846244347,-500.0,0.00013699,2]
[356047947,1741846244356,-500.0,0.00013699,2]
[356047948,1741846244366,-500.0,0.00013699,2]
[356047949,1741846244376,-500.0,0.00013699,2]
[356047950,1741846244385,-500.0,0.00013699,2]
[356047951,1741846244395,-500.0,0.00013699,2]
[356047952,1741846244404,-500.0,0.00013699,2]
[356047953,1741846244413,-500.0,0.00013699,2]
[356047954,1741846244422,-500.0,0.00013699,2]
[356047955,1741846244432,-500.0,0.00013699,2]
[356047956,1741846244441,-518.94412919,0.00013699,2]
[356047957,1741846244452,-500.0,0.00013699,2]
[356047958,1741846244462,-151.0,0.00013699,2]
[356047959,1741846244471,-151.0,0.00013699,2]
[356047960,1741846244482,-151.0,0.00013699,2]
[356047961,1741846244491,-151.0,0.00013699,2]
[356047962,1741846244500,-151.0,0.00013699,2]
[356047963,1741846244509,-151.0,0.00013699,2]
[356047964,1741846244519,-2540.901073,0.00013699,2]
[356047965,1741846244529,-2540.901073,0.00013699,2]
[356047966,1741846244539,-153.19467,0.00013699,2]
[356047967,1741846244549,-151.0,0.00013699,2]
[356047968,1741846244559,-153.19467,0.00013699,2]
[356047969,1741846244569,-181.903076,0.00013699,2]
[356047970,1741846244578,-198.09446641,0.00013734,2]
[356047971,1741846244589,-153.19467,0.00013736,2]
[356047972,1741846244598,-151.0,0.00013736,2]
[356047973,1741846244607,-153.19467,0.00013736,2]
[356047974,1741846244617,-152.0,0.00013761,2]
[356047975,1741846244627,-151.0,0.00013773,2]
[356047976,1741846244637,-228.538939,0.00013773,2]
[356047977,1741846244647,-151.0,0.00013773,2]
[356047978,1741846244657,-151.0,0.00013773,2]
[356047979,1741846244667,-151.0,0.00013773,2]
[356047980,1741846244676,-2540.901073,0.00013773,2]
[356047981,1741846244686,-2540.901073,0.00013773,2]
[356047982,1741846244696,-2540.901073,0.00013773,2]
[356047983,1741846244706,-2540.901073,0.00013773,2]
[356047984,1741846244716,-153.19467,0.00013773,2]
[356047985,1741846244726,-151.0,0.00013773,2]
[356047986,1741846244736,-153.19467,0.00013773,2]
[356047987,1741846244745,-1000.0,0.00013777,2]
[356047988,1741846244755,-1978.1,0.00013782,2]
[356047989,1741846244764,-1978.1,0.00013782,2]
[356047990,1741846244774,-1978.1,0.00013782,2]
[356047991,1741846244784,-500.0,0.00013783,2]
[356047992,1741846244796,-500.0,0.00013783,2]
[356047993,1741846244806,-500.0,0.00013783,2]
[356047994,1741846244816,-500.0,0.00013783,2]
[356047995,1741846244826,-500.0,0.00013783,2]
[356047996,1741846244835,-694.16,0.00013783,2]
[356047997,1741846244845,-500.0,0.00013783,2]
[356047998,1741846244855,-541.29,0.00013783,2]
[356047999,1741846244865,-500.0,0.00013783,2]
[356048000,1741846244878,-500.0,0.00013783,2]
[356048001,1741846244888,-164.985149,0.00013783,2]
[356048002,1741846244899,-500.0,0.00013783,2]
[356048003,1741846244909,-165.346097,0.00013783,2]
[356048004,1741846244919,-500.0,0.00013783,2]
[356048005,1741846244929,-295.922167,0.00013783,2]
[356048006,1741846244940,-500.0,0.00013783,2]
[356048007,1741846244951,-500.0,0.00013783,2]
[356048008,1741846244965,-1048.36,0.00013783,2]
[356048009,1741846244975,-500.0,0.00013783,2]
[356048010,1741846244987,-500.0,0.00013783,2]
[356048011,1741846244999,-500.0,0.00013783,2]
[356048012,1741846245009,-1903.15,0.00013783,2]
[356048013,1741846245020,-208.816942,0.00013783,2]
[356048014,1741846245030,-208.816942,0.00013783,2]
[356048015,1741846245039,-208.816942,0.00013783,2]
[356048016,1741846245049,-575.32341953,0.00013783,2]
[356048017,1741846245059,-208.816942,0.00013783,2]
[356048018,1741846245068,-208.816942,0.00013783,2]
[356048019,1741846245078,-208.816942,0.00013783,2]
[356048020,1741846245088,-500.0,0.00013783,2]
[356048021,1741846245098,-500.0,0.00013783,2]
[356048022,1741846245108,-500.0,0.00013783,2]
[356048023,1741846245118,-500.0,0.00013783,2]
[356048024,1741846245128,-500.0,0.00013783,2]
[356048025,1741846245138,-556.59,0.00013783,2]
[356048026,1741846245148,-434.59885488,0.00013783,2]
[356048027,1741846245157,-500.0,0.00013783,2]
[356048028,1741846245167,-558.9,0.00013783,2]
[356048029,1741846245177,-500.0,0.00013783,2]
[356048030,1741846245187,-500.0,0.00013783,2]
[356048031,1741846245197,-2904.58945,0.00013783,2]
[356048032,1741846245207,-2904.58945,0.00013783,2]
[356048033,1741846245217,-2904.58945,0.00013783,2]
[356048034,1741846245226,-2904.58945,0.00013783,2]
[356048035,1741846245237,-2904.58945,0.00013783,2]
[356048036,1741846245247,-2904.58945,0.00013783,2]
[356048037,1741846245257,-151.0,0.00013783,2]
[356048038,1741846245268,-151.0,0.00013783,2]
[356048039,1741846245278,-151.0,0.00013783,2]
[356048040,1741846245288,-151.0,0.00013783,2]
[356048041,1741846245297,-151.0,0.00013783,2]
[356048042,1741846245307,-151.0,0.00013783,2]
[356048043,1741846245318,-500.0,0.00013783,2]
[356048044,1741846245328,-500.0,0.00013783,2]
[356048045,1741846245337,-500.0,0.00013783,2]
[356048046,1741846245347,-329.531492,0.00013783,2]
[356048047,1741846245357,-329.531492,0.00013783,2]
[356048048,1741846245367,-329.531492,0.00013783,2]
[356048049,1741846245377,-500.0,0.00013783,2]
[356048050,1741846245386,-500.0,0.00013783,2]
[356048051,1741846245396,-329.531492,0.00013783,2]
[356048052,1741846245406,-329.531492,0.00013783,2]
[356048053,1741846245416,-500.0,0.00013783,2]
[356048054,1741846245426,-329.531492,0.00013783,2]
[356048055,1741846245435,-500.0,0.00013783,2]
[356048056,1741846245445,-151.0,0.00013783,2]
[356048057,1741846245455,-151.0,0.00013783,2]
[356048058,1741846245465,-151.0,0.00013783,2]
[356048059,1741846245475,-151.0,0.00013783,2]
[356048060,1741846245485,-151.0,0.00013783,2]
[356048061,1741846245495,-151.0,0.00013783,2]
[356048062,1741846245505,-159.852596,0.00013783,2]
[356048063,1741846245515,-507.99432675,0.00013783,2]
[356048064,1741846245524,-151.0,0.00013783,2]
[356048065,1741846245534,-151.0,0.00013783,2]
[356048066,1741846245544,-151.0,0.00013783,2]
[356048067,1741846245553,-151.0,0.00013783,2]
[356048068,1741846245563,-151.0,0.00013783,2]
[356048069,1741846245573,-151.0,0.00013783,2]
[356048070,1741846245582,-151.0,0.00013783,2]
[356048071,1741846245592,-500.0,0.00013783,2]
[356048072,1741846245601,-295.999963,0.00013783,2]
[356048073,1741846245611,-500.0,0.00013783,2]
[356048074,1741846245621,-500.0,0.00013783,2]
[356048075,1741846245631,-500.0,0.00013783,2]
[356048076,1741846245641,-500.0,0.00013783,2]
[356048077,1741846245650,-500.0,0.00013783,2]
[356048078,1741846245660,-500.0,0.00013783,2]
[356048079,1741846245670,-1422.99,0.00013783,2]
[356048080,1741846245680,-212.664564,0.00013783,2]
[356048081,1741846245690,-212.664564,0.00013783,2]
[356048082,1741846245700,-212.664564,0.00013783,2]
[356048083,1741846245710,-212.664564,0.00013783,2]
[356048084,1741846245720,-212.664564,0.00013783,2]
[356048085,1741846245730,-212.664564,0.00013783,2]
[356048086,1741846245740,-212.664564,0.00013783,2]
[356048087,1741846245750,-212.664564,0.00013783,2]
[356048088,1741846245759,-212.664564,0.00013783,2]
[356048089,1741846245769,-212.664564,0.00013783,2]
[356048090,1741846245779,-212.664564,0.00013783,2]
[356048091,1741846245789,-212.664564,0.00013783,2]
[356048092,1741846245803,-500.0,0.00013783,2]
[356048093,1741846245813,-500.0,0.00013783,2]
[356048094,1741846245823,-743.403852,0.00013783,2]
[356048095,1741846245832,-743.403852,0.00013783,2]
[356048096,1741846245843,-743.403852,0.00013783,2]
[356048097,1741846245853,-743.403852,0.00013783,2]
[356048098,1741846245862,-743.403852,0.00013783,2]
[356048099,1741846245873,-743.403852,0.00013783,2]
[356048100,1741846245884,-743.403852,0.00013783,2]
[356048101,1741846245893,-743.403852,0.00013783,2]
[356048102,1741846245903,-743.403852,0.00013783,2]
[356048103,1741846245912,-743.403852,0.00013783,2]
[356048104,1741846245921,-743.403852,0.00013783,2]
[356048105,1741846245931,-743.403852,0.00013783,2]
[356048106,1741846245941,-743.403852,0.00013783,2]
[356048107,1741846245950,-743.403852,0.00013783,2]
[356048108,1741846245960,-743.403852,0.00013783,2]
[356048109,1741846245969,-743.403852,0.00013783,2]
[356048110,1741846245981,-743.403852,0.00013783,2]
[356048111,1741846245991,-743.403852,0.00013783,2]
[356048112,1741846246001,-743.403852,0.00013783,2]
[356048114,1741846246011,-743.403849,0.00013783,2]
[356048115,1741846246021,-151.0,0.00013783,2]
[356048116,1741846246030,-154.651777,0.00013783,2]
[356048117,1741846246040,-500.0,0.00013783,2]
[356048118,1741846246050,-500.0,0.00013783,2]
[356048119,1741846246059,-450.92397487,0.00013783,2]
[356048120,1741846246069,-610.949302,0.00013783,2]
[356048122,1741846246079,-610.949302,0.00013783,2]
[356048123,1741846246089,-610.949302,0.00013783,2]
[356048124,1741846246099,-610.949302,0.00013783,2]
[356048125,1741846246109,-500.0,0.00013783,2]
[356048126,1741846246119,-610.949302,0.00013783,2]
[356048127,1741846246129,-610.949302,0.00013783,2]
[356048128,1741846246139,-610.949302,0.00013783,2]
[356048129,1741846246149,-610.949302,0.00013783,2]
[356048130,1741846246158,-507.2328986,0.00013783,2]
[356048131,1741846246169,-610.949302,0.00013783,2]
[356048132,1741846246179,-151.0,0.00013783,2]
[356048134,1741846246188,-610.949302,0.00013783,2]
[356048135,1741846246200,-151.0,0.00013783,2]
[356048136,1741846246210,-151.0,0.00013783,2]
[356048137,1741846246220,-610.949302,0.00013783,2]
[356048138,1741846246231,-151.0,0.00013783,2]
[356048139,1741846246240,-610.949302,0.00013783,2]
[356048141,1741846246250,-610.949302,0.00013783,2]
[356048142,1741846246260,-151.0,0.00013783,2]
[356048143,1741846246271,-610.949302,0.00013783,2]
[356048144,1741846246280,-151.0,0.00013783,2]
[356048145,1741846246291,-610.949302,0.00013783,2]
[356048146,1741846246301,-151.0,0.00013783,2]
[356048147,1741846246311,-610.949302,0.00013783,2]
[356048148,1741846246321,-151.0,0.00013783,2]
[356048149,1741846246331,-610.949302,0.00013783,2]
[356048150,1741846246340,-151.0,0.00013783,2]
[356048151,1741846246350,-151.0,0.00013783,2]
[356048152,1741846246360,-610.949302,0.00013783,2]
[356048153,1741846246370,-151.0,0.00013783,2]
[356048154,1741846246379,-151.0,0.00013783,2]
[356048155,1741846246389,-151.0,0.00013783,2]
[356048156,1741846246399,-500.0,0.00013783,2]
[356048157,1741846246408,-500.0,0.00013783,2]
[356048158,1741846246417,-151.0,0.00013783,2]
[356048159,1741846246427,-155.117943,0.00013783,2]
[356048160,1741846246436,-610.949302,0.00013783,2]
[356048161,1741846246446,-151.0,0.00013783,2]
[356048162,1741846246455,-610.949292,0.00013783,2]
[356048163,1741846246465,-151.0,0.00013783,2]
[356048164,1741846246474,-151.0,0.00013783,2]
[356048165,1741846246484,-151.0,0.00013783,2]
[356048166,1741846246494,-151.0,0.00013783,2]
[356048167,1741846246504,-236.355186,0.00013783,2]
[356048168,1741846246514,-500.0,0.00013783,2]
[356048169,1741846246524,-629.22,0.00013783,2]
[356048170,1741846246534,-866.57,0.00013783,2]
[356048171,1741846246544,-724.33,0.00013783,2]
[356048172,1741846246555,-328.01405798,0.00013783,2]
[356048173,1741846246566,-502.6374753,0.00013783,2]
[356048174,1741846246575,-705.49,0.00013783,2]
[356048175,1741846246585,-500.0,0.00013783,2]
[356048176,1741846246595,-1300.22,0.00013783,2]
[356048177,1741846246604,-500.0,0.00013783,2]
[356048178,1741846246614,-500.0,0.00013783,2]
[356048179,1741846246623,-500.0,0.00013783,2]
[356048180,1741846246633,-500.0,0.00013783,2]
[356048181,1741846246643,-519.12602111,0.00013783,2]
[356048182,1741846246652,-505.81,0.00013783,2]
[356048183,1741846246662,-2036.28,0.00013783,2]
[356048184,1741846246671,-500.0,0.00013783,2]
[356048185,1741846246681,-402.063826,0.00013783,2]
[356048186,1741846246691,-500.0,0.00013783,2]
[356048187,1741846246700,-402.063826,0.00013783,2]
[356048188,1741846246710,-402.063826,0.00013783,2]
[356048189,1741846246719,-402.063826,0.00013783,2]
[356048190,1741846246728,-500.0,0.00013783,2]
[356048191,1741846246738,-500.0,0.00013783,2]
[356048192,1741846246747,-500.0,0.00013783,2]
[356048193,1741846246757,-402.063826,0.00013783,2]
[356048194,1741846246766,-402.063826,0.00013783,2]
[356048195,1741846246776,-705.61,0.00013783,2]
[356048196,1741846246785,-402.063826,0.00013783,2]
[356048197,1741846246797,-402.063826,0.00013783,2]
[356048198,1741846246807,-402.063826,0.00013783,2]
[356048199,1741846246817,-500.0,0.00013783,2]
[356048200,1741846246826,-402.063826,0.00013783,2]
[356048201,1741846246837,-2371.78,0.00013783,2]
[356048202,1741846246846,-402.063826,0.00013783,2]
[356048203,1741846246856,-402.063826,0.00013783,2]
[356048204,1741846246866,-500.0,0.00013783,2]
[356048205,1741846246879,-500.0,0.00013783,2]
[356048206,1741846246889,-500.0,0.00013783,2]
[356048207,1741846246899,-6317.47,0.00013783,2]
[356048208,1741846246909,-500.0,0.00013783,2]
[356048209,1741846246918,-500.0,0.00013783,2]
[356048210,1741846246928,-453.144995,0.00013783,2]
[356048211,1741846246938,-453.144995,0.00013783,2]
[356048212,1741846246947,-453.144995,0.00013783,2]
[356048213,1741846246957,-500.0,0.00013783,2]
[356048214,1741846246967,-453.144995,0.00013783,2]
[356048215,1741846246977,-453.144995,0.00013783,2]
[356048216,1741846246988,-453.144995,0.00013783,2]
[356048217,1741846246998,-453.144995,0.00013783,2]
[356048218,1741846247008,-453.144995,0.00013783,2]
[356048219,1741846247019,-453.144995,0.00013783,2]
[356048220,1741846247028,-500.0,0.00013783,2]
[356048221,1741846247038,-453.144995,0.00013783,2]
[356048222,1741846247048,-453.144995,0.00013783,2]
[356048223,1741846247058,-453.144995,0.00013783,2]
[356048224,1741846247069,-453.144995,0.00013783,2]
[356048225,1741846247079,-151.0,0.00013783,2]
[356048226,1741846247089,-453.144995,0.00013783,2]
[356048227,1741846247099,-151.0,0.00013783,2]
[356048228,1741846247108,-151.0,0.00013783,2]
[356048229,1741846247118,-453.144995,0.00013783,2]
[356048230,1741846247127,-151.0,0.00013783,2]
[356048231,1741846247138,-568.87,0.00013783,2]
[356048232,1741846247147,-151.0,0.00013783,2]
[356048233,1741846247157,-453.144995,0.00013783,2]
[356048234,1741846247166,-151.0,0.00013783,2]
[356048235,1741846247176,-453.144995,0.00013783,2]
[356048236,1741846247186,-151.0,0.00013783,2]
[356048237,1741846247198,-453.144995,0.00013783,2]
[356048238,1741846247209,-151.0,0.00013783,2]
[356048239,1741846247218,-453.144995,0.00013783,2]
[356048240,1741846247228,-453.144995,0.00013783,2]
[356048241,1741846247237,-151.0,0.00013783,2]
[356048242,1741846247247,-151.0,0.00013783,2]
[356048243,1741846247256,-151.0,0.00013783,2]
[356048244,1741846247266,-500.0,0.00013783,2]
[356048245,1741846247276,-151.0,0.00013783,2]
[356048246,1741846247285,-151.0,0.00013783,2]
[356048247,1741846247294,-151.0,0.00013783,2]
[356048248,1741846247304,-272.04607118,0.00013783,2]
[356048249,1741846247313,-1376.3,0.00013783,2]
[356048250,1741846247323,-519.39929642,0.00013783,2]
[356048251,1741846247333,-500.0,0.00013783,2]
[356048252,1741846247342,-500.0,0.00013783,2]
[356048253,1741846247352,-500.0,0.00013783,2]
[356048254,1741846247516,-500.0,0.00013783,2]
[356048255,1741846247554,-500.0,0.00013783,2]
[356048256,1741846247565,-500.0,0.00013783,2]
[356048257,1741846247575,-151.0,0.00013783,2]
[356048258,1741846247586,-500.0,0.00013783,2]
[356048259,1741846247596,-500.0,0.00013783,2]
[356048260,1741846247605,-151.0,0.00013783,2]
[356048261,1741846247615,-1721.5,0.00013783,2]
[356048262,1741846247624,-500.0,0.00013783,2]
[356048263,1741846247634,-151.0,0.00013783,2]
[356048264,1741846247643,-151.0,0.00013783,2]
[356048265,1741846247653,-151.0,0.00013783,2]